Cogmind - Beta 12 --- EXPLORER MODE // 2023.09.17 @ 18:59:59 Player: Khal42 Result: Self-destructed Performance ------------- Evolutions (1) 500 Regions Visited (3) 600 Robots Destroyed (11) 55 Value Destroyed (293) 293 Prototype IDs (1) 20 Alien Tech Used (0) 0 Bonus (0) 0 TOTAL SCORE: 1468 Bonus ------- None Cogmind --------- Core Integrity 333/400 Matter 271/300 Energy 250/250 System Corruption 0% Temperature Cool (0) Movement Hovering (131) Ox1 Location -9/Materials Parts ------- > --- POWER (1) -------- Ion Engine > --- PROPULSION (3) --- Improved Hover Unit Combat Airjet > --- UTILITY (4) ------ Heat Sink Improved Heat Sink Medium Storage Unit Power Shielding > --- WEAPON (2) ------- Advanced Beam Cannon Flak Cannon > --- INVENTORY (10) --- Light Ion Engine Light Deuterium Engine Hover Unit EM Pulse Gun EM Shotgun Small Laser Shotgun Shotgun Flak Cannon Peak State ------------ > --- POWER ------------ Ion Engine > --- PROPULSION ------- Hover Unit Improved Hover Unit Combat Airjet > --- UTILITY ---------- Heat Sink Improved Heat Sink Medium Storage Unit Power Shielding > --- WEAPON ----------- Advanced Beam Cannon Flak Cannon > --- INVENTORY -------- Light Ion Engine Light Deuterium Engine Hover Unit EM Pulse Gun Small Laser Flak Cannon [Rating: 22] Favorites ----------- Power Ion Engine Engine Ion Engine Propulsion Aluminum Leg Leg Aluminum Leg Hover Unit Improved Hover Unit Utility Medium Storage Unit Device Heat Sink Storage Medium Storage Unit Protection Power Shielding Weapon Small Laser Energy Gun Small Laser Energy Cannon Advanced Beam Cannon Ballistic Gun Light Assault Rifle Ballistic Cannon Flak Cannon Build | -11 -10 -10 -9 ------- Run | Jun Mat Min Mat Slots Evolved 3 | . 1 . 2 Power . | . . . . Propulsion 1 | . . . 1 Utility 2 | . 1 . 1 Weapon . | . . . . Parts Attached 17 | 8 . 1 8 Power 2 | 2 . . . Engine 2 | 2 . . . Core . | . . . . Reactor . | . . . . Propulsion 7 | 2 . . 5 Treads . | . . . . Leg 4 | 2 . . 2 Wheel . | . . . . Hover 3 | . . . 3 Flight . | . . . . Utility 4 | 2 . 1 1 Device 2 | . . 1 1 Storage 1 | 1 . . . Processor . | . . . . Hackware . | . . . . Protection 1 | 1 . . . Artifact . | . . . . Weapon 4 | 2 . . 2 Energy Gun 1 | 1 . . . Energy Cannon 1 | . . . 1 Ballistic Gun 1 | 1 . . . Ballistic Cannon 1 | . . . 1 Launcher . | . . . . Special Weapon . | . . . . Impact Weapon . | . . . . Slashing Weapon . | . . . . Piercing Weapon . | . . . . Special Melee Weapon . | . . . . Unidentified Prototypes 1 | . . . 1 Parts Lost 2 | . . . 2 Power . | . . . . Propulsion 2 | . . . 2 Utility . | . . . . Weapon . | . . . . Highest Loss Streak 1 | . . . 1 To Critical Strikes . | . . . . Average Slot Usage (%) 91 | . 87 87 97 Engine 11 | . 12 12 10 Leg 23 | . 25 25 22 Hover 2 | . . . 5 Device 8 | . . . 19 Storage 11 | . 12 12 10 Protection 11 | . 12 12 10 Energy Gun 9 | . 12 12 6 Energy Cannon 1 | . . . 3 Ballistic Gun 9 | . 12 12 5 Ballistic Cannon 1 | . . . 4 Naked Turns . | . . . . Heaviest Build 28 | 18 18 19 28 Greatest Support 30 | 20 20 20 30 Greatest Overweight (x) 1 | 1 . . 1 Average Overweight (x) . | . . . . Largest Inventory Capacity 10 | 10 10 10 10 Average Capacity 9 | 6 10 10 10 Most Carried 9 | 5 2 9 9 Average Carried 4 | 2 2 3 7 Final Capacity 10 | 10 10 10 10 Final Carried 9 | 2 2 9 9 Class Distribution -------------------- 100% | Hacker-Mutant Dominant Class ---------------- Hacker-Mutant | -10/Materials Hacker-Mutant | -10/Mines Hacker-Mutant | -9/Materials Resources | -11 -10 -10 -9 ----------- Run | Jun Mat Min Mat Matter Collected 401 | 172 108 19 102 Remotely . | . . . . Salvage Created 326 | . . 92 234 Parts 29 | . . 6 23 Haulers Intercepted . | . . . . Recyclers Shooed . | . . . . Parts Field Recycled . | . . . . Retrieved Matter . | . . . . Parts Self-Destructed . | . . . . Prevented . | . . . . Kills | -11 -10 -10 -9 ------- Run | Jun Mat Min Mat Combat Hostiles Destroyed 8 | . . 2 6 Guns 5 | . . 2 3 Cannons 3 | . . . 3 Classes Destroyed 4 | . . 1 3 Watcher 3 | . . . 3 Swarmer 3 | . . . 3 Grunt 3 | . . 2 1 Sentry 2 | . . . 2 Best Kill Streak 5 | . . 2 5 Combat Bots Only 3 | . . 2 3 Max Kills in Single Turn 1 | . . 1 1 Gunslinging . | . . . . Exploded . | . . . . Melee . | . . . . Uniques/NPCs Destroyed . | . . . . Combat | -11 -10 -10 -9 -------- Run | Jun Mat Min Mat Damage Taken 456 | . . 101 355 Core 99 | . . 32 67 Absorbed by Shields . | . . . . Redirected to Shielding 11 | . . . 11 Core Remaining (%) 93 | 100 . 87 . Volleys Fired 35 | . . 9 26 Largest 2 | . . 2 2 Hottest 112 | . . 60 112 Shots Fired 68 | . . 16 52 Gun 54 | . . 16 38 Cannon 14 | . . . 14 Launcher . | . . . . Special . | . . . . Kinetic 35 | . . 9 26 Thermal 33 | . . 7 26 Explosive . | . . . . Electromagnetic . | . . . . Robot Hit Streak 23 | . . 6 23 Robot Miss Streak 5 | . . 2 5 Penetration Max . | . . . . Secondary Targets 1 | . . 1 . Max Gunslinging Chain 1 | . . 1 . Shots Hit Robots 55 | . . 12 43 Core Hits 23 | . . 5 18 Critical Kills . | . . . . Critical Parts Destroyed . | . . . . Critical Strikes . | . . . . Melee Attacks . | . . . . Impact . | . . . . Slashing . | . . . . Piercing . | . . . . Sneak Attacks . | . . . . Combat Hostiles . | . . . . Follow-up Attacks . | . . . . Damage Inflicted 649 | . . 112 537 Guns 451 | . . 112 339 Cannons 154 | . . . 154 Explosions 44 | . . . 44 Melee . | . . . . Ramming . | . . . . Kinetic 261 | . . 46 215 Thermal 388 | . . 66 322 Explosive . | . . . . Electromagnetic . | . . . . Impact . | . . . . Slashing . | . . . . Piercing . | . . . . Highest Corruption . | . . . . Average Corruption . | . . . . Corruption Purged . | . . . . Corruption Blocked . | . . . . Overload Shots . | . . . . Overflow Damage 10 | . . . 10 Projectiles . | . . . . Explosions 10 | . . . 10 Melee . | . . . . Knockbacks . | . . . . Impact . | . . . . Kinetic . | . . . . Secondary . | . . . . Self-Inflicted Damage . | . . . . Shots . | . . . . Rammed . | . . . . Targets Rammed . | . . . . Kicked . | . . . . Crushed . | . . . . Highest Temperature 64 | . . 64 10 Average Temperature 29 | . . 30 10 Received Heat Transfer 285 | . . 72 213 Siege Activations . | . . . . Robots Corrupted . | . . . . Combat Hostiles . | . . . . Parts Fried . | . . . . Impact Corruptions . | . . . . Robots Melted . | . . . . Combat Hostiles . | . . . . Parts Melted 3 | . . . 3 Heat Transferred 786 | . . 150 636 Parts Sabotaged . | . . . . Parts Stolen . | . . . . Parts Stripped . | . . . . Power Chain Reactions . | . . . . Missiles Intercepted . | . . . . Alert | -11 -10 -10 -9 ------- Run | Jun Mat Min Mat Peak Influence 231 | . . 50 231 Initial 13 | . . . 13 Average 38 | . . 5 96 Maximum Alert Level 1 | . . . 1 Low Security (%) 91 | 100 100 100 78 Level 1 8 | . . . 21 Level 2 . | . . . . Level 3 . | . . . . Level 4 . | . . . . Level 5 . | . . . . High Security . | . . . . Max Security . | . . . . Squads Dispatched . | . . . . Investigation . | . . . . Extermination . | . . . . Reinforcement . | . . . . Assault . | . . . . Garrison . | . . . . Intercept . | . . . . Searches Triggered . | . . . . Construction Impeded . | . . . . Haulers Reinforced . | . . . . Active Scanning Responses . | . . . . Cargo Convoy Interrupts . | . . . . Stealth | -11 -10 -10 -9 --------- Run | Jun Mat Min Mat Distress Signals 2 | . 1 . 1 Communications Jammed . | . . . . Distress Signals . | . . . . Times Spotted 22 | . 3 6 13 Peak Tracking Total 4 | . 4 2 4 Tactical Retreats . | . . . . Traps | -11 -10 -10 -9 ------- Run | Jun Mat Min Mat Traps Triggered . | . . . . Indirectly . | . . . . Trap Hack Attempts . | . . . . Triggered . | . . . . Disarmed . | . . . . Reprogrammed . | . . . . Reused . | . . . . Traps Extracted . | . . . . Installed . | . . . . Triggered . | . . . . Machines | -11 -10 -10 -9 ---------- Run | Jun Mat Min Mat Machines Disabled 1 | . . . 1 Max in Single Turn 1 | . . . 1 Machines Repaired . | . . . . Machines Sabotaged . | . . . . Overloaded Fab Kills . | . . . . Hacking | -11 -10 -10 -9 --------- Run | Jun Mat Min Mat Machines Accessed 2 | . . . 2 Terminals 1 | . . . 1 Fabricators . | . . . . Repair Stations . | . . . . Recycling Units 1 | . . . 1 Scanalyzers . | . . . . Garrison Access . | . . . . Total Hacks 3 | . . . 3 Successful 2 | . . . 2 Failed 1 | . . . 1 Catastrophic . | . . . . Database Lockouts . | . . . . Manual . | . . . . Terminals 1 | . . . 1 Fabricators . | . . . . Repair Stations . | . . . . Recycling Units 2 | . . . 2 Scanalyzers . | . . . . Garrison Access . | . . . . Terminal Hacks . | . . . . Fabricator Hacks . | . . . . Repair Station Hacks . | . . . . Recycling Unit Hacks 2 | . . . 2 Report Inventory 1 | . . . 1 Retrieve Components 1 | . . . 1 Scanalyzer . | . . . . Garrison Access Hacks . | . . . . Unauthorized Hacks . | . . . . Terminals . | . . . . Fabricators . | . . . . Repair Stations . | . . . . Recycling Units . | . . . . Scanalyzers . | . . . . Garrison Access . | . . . . Data Cores Recovered . | . . . . Used . | . . . . Hacking Detections . | . . . . Full Trace Events . | . . . . Feedback Events . | . . . . Feedback Blocked . | . . . . Robot Schematics Acquired . | . . . . Robots Built . | . . . . Authchips . | . . . . Time . | . . . . Total Robot Build Rating . | . . . . Part Schematics Acquired . | . . . . Parts Built . | . . . . Authchips . | . . . . Time . | . . . . Total Part Build Rating . | . . . . Parts Repaired . | . . . . Time . | . . . . Parts Recycled . | . . . . Recycled Matter . | . . . . Retrieved Matter . | . . . . Retrieved Components 3 | . . . 3 Parts Scanalyzed . | . . . . Part Schematics Acquired . | . . . . Parts Damaged . | . . . . Bothacking | -11 -10 -10 -9 ------------ Run | Jun Mat Min Mat Used RIF Installer . | . . . . Robots Hacked . | . . . . Non-combat . | . . . . Combat . | . . . . Robot Hacks Applied . | . . . . Relay Couplers Released . | . . . . Fabnet Peak Effective % . | . . . . Robots Rewired . | . . . . Allies Hacked . | . . . . Hacks Repelled . | . . . . Allies | -11 -10 -10 -9 -------- Run | Jun Mat Min Mat Total Allies . | . . . . Largest Group . | . . . . Highest-Rated Group . | . . . . Highest-Rated Ally . | . . . . Total Orders . | . . . . Ally Attacks . | . . . . Total Damage . | . . . . Kills . | . . . . Allies Corrupted . | . . . . Allies Melted . | . . . . Intel | -11 -10 -10 -9 ------- Run | Jun Mat Min Mat Robot Analysis Total . | . . . . Derelict Logs Recovered 2 | . . 2 . Drone Launches . | . . . . Drone Recoveries . | . . . . Exploration | -11 -10 -10 -9 ------------- Run | Jun Mat Min Mat Turns Passed 632 | 58 32 303 239 Spaces Moved 399 | 39 27 213 120 Core 8 | 8 . . . Treads . | . . . . Legs 362 | 31 27 213 91 Wheels . | . . . . Hover 29 | . . . 29 Flight . | . . . . Fastest Speed 50 | 50 120 120 120 Average Speed 119 | 110 120 120 121 Slowest Speed 131 | 120 120 120 131 Overloaded Moves . | . . . . Propulsion Burnouts . | . . . . Robots Hopped . | . . . . Cave-ins Triggered . | . . . . Exploration Rate (%) 21 | 5 12 61 9 Regions Visited 3 Branch Regions 1 Pre-discovered Areas . | . . . . Known Exits Taken 3 | 1 1 1 . Unknown Exits Taken . | . . . . Scrap Searched 1 | . . 1 . Spaces Dug . | . . . . Terrain Destroyed 9 | . . . 9 Melee . | . . . . Projectile . | . . . . AOE 9 | . . . 9 Terrain Rammed . | . . . . Walls Destroyed . | . . . . Machines Disabled . | . . . . Actions | -11 -10 -10 -9 --------- Run | Jun Mat Min Mat Total 489 | 51 26 245 167 Wait 16 | . . 16 . Move 396 | 38 26 212 120 Hop . | . . . . Pick Up 19 | 5 . 7 7 Fast Attach 7 | 4 . 1 2 Attach 9 | 3 . . 6 Detach . | . . . . Swap 1 | 1 . . . Drop 6 | . . . 6 Fire 35 | . . 9 26 Melee . | . . . . Ram . | . . . . Kick . | . . . . Crush . | . . . . Escape Stasis . | . . . . Rewire . | . . . . Trap . | . . . . Miscellaneous . | . . . . Route ------- -11/Junkyard -10/Materials -10/Mines -9/Materials (discovered 2 exits: Mat / Min) History --------- Turn | Location | Event 10 | -11/Junkyard | Identified exit to Materials 10 | -11/Junkyard | Discovered exit to Materials (range 16) 59 | -11/Junkyard | Entered Materials 59 | -10/Materials | Evolved 1 slot: Utility x1 73 | -10/Materials | Identified exit to Mines 73 | -10/Materials | Discovered exit to Mines (range 16) 91 | -10/Materials | Entered Mines 112 | -10/Mines | Assembled infested the area 117 | -10/Mines | Assisted by a Guerilla fighting off Assembled 307 | -10/Mines | Build established: Hacker-Mutant 325 | -10/Mines | Learned 4 Materials zone layouts 334 | -10/Mines | Identified exit to Materials 334 | -10/Mines | Discovered exit to Materials (range 9) 394 | -10/Mines | Entered Materials 394 | -9/Materials | Evolved 2 slots: Propulsion x1, Utility x1 395 | -9/Materials | Identified exit to Mines 396 | -9/Materials | Identified exit to Materials 633 | -9/Materials | Self-destructed Last Messages --------------- 00615_ U-05 Engineer lays Concrete. 00616_ K-01 Serf collects debris. 00616_ U-05 Engineer lays Concrete. 00616_ K-01 Serf collects debris. 00617_ U-05 Engineer lays Concrete. 00618_ W-16 Scout distress signal alerts nearby ally. 00619_ U-05 Engineer lays Concrete. 00620_ U-05 Engineer builds a Wall. 00620_ U-05 Engineer lays Concrete. 00623_ W-16 Scout destroyed. 00623_ U-05 Engineer builds a Wall. 00624_ U-05 Engineer lays Concrete. 00624_ U-05 Engineer builds a Wall. 00624_ U-05 Engineer lays Concrete. 00625_ U-05 Engineer builds a Wall. 00626_ U-05 Engineer lays Concrete. 00628_ Hover Unit destroyed. 00629_ U-05 Engineer lays Concrete. 00632_ K-01 Serf collects debris. 00632_ U-05 Engineer lays Concrete. Map ----- +----------------------------------------------------+ | ??????????????????????????????????? | | #######+## ??????????????????????????????????? | | #?# #####??????????????????????????????????? | | #?# #??????????????????????????????????????? | | #?# #??????????????????????????????????????? | | #?# #??????????????????????????????????????? | | #?# #??????????????????????????????????????? | | #?# #??????????????????????????????????????? | | #?########??????????????????????????????????????? | | #??????# #??????????????????????????????????????? | | ###########??????????????+??????????????????????? | | # #??#??????????? ??????????????????????? | | # #??#??????????? ??????????????????????? | | # #??#??????????? #?????????????????????? | | + """ """ #??#??????????? #?????????????????????? | | # """ """ #??#??????????# ##????????????????????? | | # """ """ #??#?????????? #????????????????????? | | # #??#?????????# #????????????????????? | | # #??#?????????+ +????????????????????? | | ########+##??#?????????# #????????????????????? | | # ## #??############ ##???????????????????? | | # ## ##?# ##??????????????????? | | # """ # ### T#??????????????????? | | # """ + gY!* #???????????????????? | | # """ # ###%=b [ k##??????????????????? | | # ## ##?#! = @ ;#??????????????????? | | # ##+###### % * ##??????????????????? | | ######## # u ##??????????????????? | | #??????# # ##??????????????????? | | #??????# + ku ##??????????????????? | | #??????# ##T##;; uu #???????????????????? | | #??????# ?#??# ; * #???????????????????? | | #??????# ????### = #?????????#########?? | | #??????##############= #?????????# #?? | | #####???????# !/ #== ########### #?? | | #??????##!! "" + #?? | | #??????# !! Y" #[##################+######?? | | #??????##!! "" #%#?????????????# T #??? | | #???????# # #???????#####?# #??? | | #???????######### #???????# !!#?# #??? | | # ####???????????????# #???????# !!#?# """ #??? | | ?????????????????????#!#?####### //#?# """"" #??? | | ?????????????????????#!#?# [ //#?# """"" #??? | | ?????????????????????# ### ]]#?# """"" #??? | | ?????????????????????#=! [ #?# """ #??? | | ?????????????????????##### #####?# #??? | | ?????????????????????????# #?????##########??? | | ?????????????????????????#######?????????????????? | | ?????????????????????????????????????????????????? | | | +----------------------------------------------------+ Best States ------------- Heat Dissipation 52 Energy Generation 10 Energy Capacity 250 Matter Stores 300 Matter Capacity 300 Sight Range 16 Terrain Scan Density 10 Resistance: KI 35 Resistance: TH 35 Resistance: EX 35 Resistance: EM 35 Resistance: I 35 Resistance: S 35 Resistance: P 35 Power Shielding 33 Evasion (%) 55 Offensive Hacking 20 Item Schematics ----------------- None Robot Schematics ------------------ None Fabricated ------------ Nothing Alien Tech Used ----------------- None Achievements -------------- I Survived The Infestation Challenges ------------ None Game ------ Seed MakeshiftDrainedTrap Manual? 0 Play Time 00:13:23 Cumulative 26.0 hours Start 2023.09.17 @ 18:50:21 End 2023.09.17 @ 18:59:59 Sessions 1 Manual Loads 0 Difficulty Explorer Special Mode None Game No. 15 Rogue 5 Adventurer 5 Explorer 5 Win Type - Total 1 Types 0/0/0/1/0/0/0/0/0 Lore% 20 Gallery% 32 Achievement% 28 Wizard Run 0 Options --------- ASCII 0 Keyboard 0 Movement Mouse Keybinds 0 Fullscreen 1 Font 32/Terminus Map View 76x50 Tactical HUD 1 Map Filters NONE Filters NONE Steam 1 RUN: 17c6e112-5429-4dce-9a0a-eaab406fcca4